fUSD/lending_fUSD_20250109
["ID","MTS","AMOUNT","RATE_DAILY","PERIOD"]
[348272849,1736429446396,-2996.61865781,0.0001,2]
[348272851,1736429446406,-3284.46134245,0.0001,2]
[348272853,1736429446432,-353.526063,0.0001,2]
[348272855,1736429446495,-1494.40615512,0.0001,2]
[348272857,1736429446505,-33990.00000011,0.0001,2]
[348272859,1736429446517,-2516.87912024,0.0001,2]
[348272861,1736429446528,-2371.2957635,0.0001,2]
[348272864,1736429446539,-755.60676301,0.0001,2]
[348272868,1736429446570,-445.419,0.0001,2]
[348272870,1736429446581,-5570.45453968,0.0001,2]
[348272872,1736429446592,-7919.53467144,0.0001,2]
[348272874,1736429446603,-633.9148,0.0001,2]
[348272877,1736429446619,-373.8655008,0.0001,2]
[348272879,1736429446629,-24698.48082481,0.0001,2]
[348272881,1736429446640,-16764.80827395,0.0001,2]
[348272883,1736429446649,-3119.26846451,0.0001,2]
[348272885,1736429446659,-1687.37422237,0.0001,2]
[348272887,1736429446673,-21343.18383108,0.0001,2]
[348272889,1736429446689,-13444.53837763,0.0001,2]
[348272892,1736429446700,-64618.28349736,0.0001,2]
[348272894,1736429446713,-13191.61799893,0.0001,2]
[348272896,1736429446724,-289812.05736197,0.0001,2]
[348272899,1736429446745,-174981.7865505,0.0001,2]
[348272901,1736429446757,-20044.15111219,0.0001,2]
[348272907,1736429446800,-500.0,9.999e-05,2]
[348272909,1736429446810,-161759.9999995,0.0001,2]
[348272965,1736429481085,544.02,8.219e-05,2]
[348272966,1736429511644,743.1833347,0.0002,120]
[348272969,1736430372119,558.32,8.219e-05,2]
[348272987,1736430454198,1768.34,0.00017,60]
[348273019,1736430632425,-300.0,8.647e-05,2]
[348273020,1736430632435,-23900.0,8.648e-05,2]
[348273021,1736430632445,-1243.37,8.682e-05,2]
[348273022,1736430632459,-892.4,8.689e-05,2]
[348273023,1736430632469,-716.27,8.702e-05,2]
[348273024,1736430632480,-17839.1096,8.99e-05,2]
[348273025,1736430632490,-150.0,9e-05,2]
[348273026,1736430632499,-150.0,9e-05,2]
[348273027,1736430632509,-150.0,9e-05,2]
[348273028,1736430632519,-24257.85506039,9e-05,2]
[348273029,1736430632528,-413.78,9.046e-05,2]
[348273030,1736430632539,-5697.95,9.046e-05,2]
[348273031,1736430632551,-150.0,9.063e-05,2]
[348273032,1736430632561,-250.0,9.09e-05,2]
[348273033,1736430632570,-150.0,9.125e-05,2]
[348273034,1736430632580,-150.0,9.125e-05,2]
[348273035,1736430632590,-967.97902516,9.163e-05,2]
[348273036,1736430632602,-155.32097484,9.163e-05,2]
[348273037,1736430632612,-150.0,9.188e-05,2]
[348273038,1736430632622,-164.96,9.221e-05,2]
[348273039,1736430632631,-138.71675005,9.221e-05,2]
[348273040,1736430632643,-464.27463923,9.221e-05,2]
[348273041,1736430632655,-267.72861072,9.221e-05,2]
[348273042,1736430632664,-250.0,9.221e-05,2]
[348273043,1736430632673,-152.32286718,9.236e-05,2]
[348273044,1736430632684,-1347.67713282,9.236e-05,2]
[348273045,1736430632695,-150.0,9.25e-05,2]
[348273046,1736430632705,-150.0,9.25e-05,2]
[348273047,1736430632715,-150.0,9.25e-05,2]
[348273048,1736430632727,-150.0,9.313e-05,2]
[348273049,1736430632737,-150.0,9.342e-05,2]
[348273050,1736430632747,-494.03,9.362e-05,2]
[348273051,1736430632756,-150.0,9.375e-05,2]
[348273052,1736430632765,-150.0,9.375e-05,2]
[348273053,1736430632774,-150.0,9.438e-05,2]
[348273054,1736430632784,-150.0,9.5e-05,2]
[348273055,1736430632794,-150.0,9.5e-05,2]
[348273056,1736430632803,-150.0,9.5e-05,2]
[348273057,1736430632813,-420.0,9.511e-05,2]
[348273058,1736430632822,-150.0,9.563e-05,2]
[348273059,1736430632831,-150.0,9.625e-05,2]
[348273060,1736430632840,-150.0,9.625e-05,2]
[348273061,1736430632850,-2513.512,9.627e-05,2]
[348273062,1736430632859,-500.0,9.627e-05,2]
[348273063,1736430632868,-179.093,9.627e-05,2]
[348273065,1736430632878,-23693.45,9.627e-05,2]
[348273067,1736430632887,-263.92,9.627e-05,2]
[348273069,1736430632897,-1204.76,9.663e-05,2]
[348273072,1736430632906,-193.05,9.663e-05,2]
[348273075,1736430632916,-250.0,9.663e-05,2]
[348273077,1736430632925,-900.28,9.663e-05,2]
[348273079,1736430632935,-7727.11,9.663e-05,2]
[348273081,1736430632944,-150.0,9.688e-05,2]
[348273083,1736430632953,-713.58,9.688e-05,2]
[348273085,1736430632963,-150.0,9.75e-05,2]
[348273087,1736430632973,-150.0,9.75e-05,2]
[348273089,1736430632982,-150.0,9.75e-05,2]
[348273091,1736430632992,-892.4,9.775e-05,2]
[348273093,1736430633001,-2085.63676599,9.8e-05,2]
[348273095,1736430633013,-393.83053401,9.8e-05,2]
[348273097,1736430633023,-150.0,9.813e-05,2]
[348273099,1736430633032,-150.0,9.836e-05,2]
[348273101,1736430633042,-979.7,9.836e-05,2]
[348273103,1736430633052,-436.94,9.836e-05,2]
[348273105,1736430633065,-209.48,9.836e-05,2]
[348273107,1736430633075,-150.0,9.875e-05,2]
[348273109,1736430633085,-150.0,9.875e-05,2]
[348273111,1736430633095,-1000.0,9.898e-05,2]
[348273113,1736430633107,-3573.1061,9.898e-05,2]
[348273115,1736430633117,-33718.47336599,9.9e-05,2]
[348273118,1736430633129,-1891.75743401,9.9e-05,2]
[348273119,1736430633140,-5000.0,9.9e-05,2]
[348273121,1736430633150,-150.0,9.938e-05,2]
[348273124,1736430633161,-240.52247391,9.973e-05,2]
[348273126,1736430633171,-227.1363104,9.979e-05,2]
[348273128,1736430633181,-1476.38601759,9.98e-05,2]
[348273130,1736430633191,-1476.38601759,9.98e-05,2]
[348273132,1736430633201,-227.1363104,9.983e-05,2]
[348273134,1736430633210,-227.1363104,9.985e-05,2]
[348273135,1736430633221,-200.0,9.987e-05,2]
[348273138,1736430633232,-1476.38601759,9.987e-05,2]
[348273140,1736430633241,-1476.38601759,9.989e-05,2]
[348273142,1736430633251,-227.1363104,9.99e-05,2]
[348273144,1736430633263,-1476.38601759,9.993e-05,2]
[348273146,1736430633273,-1476.38601759,9.994e-05,2]
[348273148,1736430633284,-227.1363104,9.995e-05,2]
[348273150,1736430633294,-227.1363104,9.996e-05,2]
[348273152,1736430633303,-500.0,9.996e-05,2]
[348273154,1736430633313,-500.0,9.996e-05,2]
[348273156,1736430633322,-1021.91,9.996e-05,2]
[348273157,1736430633331,-500.0,9.996e-05,2]
[348273158,1736430633341,-500.0,9.996e-05,2]
[348273159,1736430633350,-500.0,9.996e-05,2]
[348273160,1736430633359,-500.0,9.996e-05,2]
[348273161,1736430633368,-500.0,9.996e-05,2]
[348273162,1736430633378,-500.0,9.996e-05,2]
[348273163,1736430633386,-500.0,9.996e-05,2]
[348273164,1736430633396,-500.0,9.996e-05,2]
[348273165,1736430633405,-1000.0,9.996e-05,2]
[348273166,1736430633414,-500.0,9.996e-05,2]
[348273167,1736430633423,-500.0,9.996e-05,2]
[348273169,1736430633433,-500.0,9.996e-05,2]
[348273171,1736430633442,-500.0,9.996e-05,2]
[348273173,1736430633451,-534.45,9.996e-05,2]
[348273175,1736430633460,-500.0,9.996e-05,2]
[348273177,1736430633471,-500.0,9.996e-05,2]
[348273179,1736430633483,-200.0,9.996e-05,2]
[348273180,1736430633492,-500.0,9.997e-05,2]
[348273183,1736430633503,-500.0,9.997e-05,2]
[348273185,1736430633512,-500.0,9.997e-05,2]
[348273186,1736430633522,-500.0,9.997e-05,2]
[348273189,1736430633532,-544.20346807,9.997e-05,2]
[348273191,1736430633542,-500.0,9.997e-05,2]
[348273193,1736430633551,-500.0,9.997e-05,2]
[348273194,1736430633561,-500.0,9.997e-05,2]
[348273197,1736430633570,-500.0,9.997e-05,2]
[348273199,1736430633580,-500.0,9.997e-05,2]
[348273201,1736430633590,-500.0,9.997e-05,2]
[348273202,1736430633600,-378.46401928,9.997e-05,2]
[348273204,1736430633610,-500.0,9.997e-05,2]
[348273207,1736430633619,-500.0,9.997e-05,2]
[348273208,1736430633628,-500.0,9.997e-05,2]
[348273210,1736430633638,-500.0,9.997e-05,2]
[348273212,1736430633647,-500.0,9.997e-05,2]
[348273214,1736430633656,-500.0,9.997e-05,2]
[348273216,1736430633665,-500.0,9.997e-05,2]
[348273218,1736430633675,-500.0,9.997e-05,2]
[348273220,1736430633684,-500.0,9.997e-05,2]
[348273222,1736430633694,-500.0,9.997e-05,2]
[348273224,1736430633703,-500.0,9.997e-05,2]
[348273226,1736430633712,-500.0,9.997e-05,2]
[348273228,1736430633724,-500.0,9.997e-05,2]
[348273230,1736430633734,-500.0,9.997e-05,2]
[348273232,1736430633743,-500.0,9.997e-05,2]
[348273234,1736430633753,-500.0,9.997e-05,2]
[348273235,1736430633762,-500.0,9.997e-05,2]
[348273237,1736430633771,-500.0,9.997e-05,2]
[348273239,1736430633781,-500.0,9.997e-05,2]
[348273241,1736430633791,-500.0,9.997e-05,2]
[348273243,1736430633800,-500.0,9.997e-05,2]
[348273245,1736430633811,-500.0,9.997e-05,2]
[348273247,1736430633820,-500.0,9.997e-05,2]
[348273249,1736430633829,-500.0,9.997e-05,2]
[348273251,1736430633838,-500.0,9.997e-05,2]
[348273253,1736430633847,-500.0,9.997e-05,2]
[348273255,1736430633857,-500.0,9.997e-05,2]
[348273257,1736430633866,-500.0,9.997e-05,2]
[348273259,1736430633875,-500.0,9.997e-05,2]
[348273260,1736430633884,-500.0,9.997e-05,2]
[348273262,1736430633894,-500.0,9.997e-05,2]
[348273264,1736430633903,-500.0,9.997e-05,2]
[348273266,1736430633913,-500.0,9.997e-05,2]
[348273269,1736430633923,-500.0,9.997e-05,2]
[348273271,1736430633933,-500.0,9.997e-05,2]
[348273273,1736430633943,-500.0,9.997e-05,2]
[348273274,1736430633952,-501.01800449,9.997e-05,2]
[348273277,1736430633963,-500.0,9.997e-05,2]
[348273279,1736430633977,-500.0,9.997e-05,2]
[348273280,1736430633988,-500.0,9.997e-05,2]
[348273283,1736430634000,-500.0,9.997e-05,2]
[348273284,1736430634010,-500.0,9.997e-05,2]
[348273286,1736430634021,-500.0,9.997e-05,2]
[348273288,1736430634031,-500.0,9.997e-05,2]
[348273290,1736430634044,-500.0,9.997e-05,2]
[348273292,1736430634058,-500.0,9.997e-05,2]
[348273294,1736430634071,-500.0,9.997e-05,2]
[348273296,1736430634081,-500.0,9.997e-05,2]
[348273298,1736430634091,-500.0,9.997e-05,2]
[348273300,1736430634102,-500.0,9.997e-05,2]
[348273302,1736430634112,-500.0,9.997e-05,2]
[348273304,1736430634122,-500.0,9.997e-05,2]
[348273306,1736430634133,-500.0,9.997e-05,2]
[348273308,1736430634143,-500.0,9.997e-05,2]
[348273310,1736430634153,-500.0,9.997e-05,2]
[348273312,1736430634162,-500.0,9.997e-05,2]
[348273314,1736430634172,-500.0,9.997e-05,2]
[348273316,1736430634182,-500.0,9.997e-05,2]
[348273318,1736430634191,-500.0,9.997e-05,2]
[348273320,1736430634201,-507.87,9.997e-05,2]
[348273341,1736430634410,-500.0,9.997e-05,2]
[348273343,1736430634421,-500.0,9.997e-05,2]
[348273345,1736430634431,-500.0,9.997e-05,2]
[348273347,1736430634441,-500.0,9.997e-05,2]
[348273349,1736430634451,-500.0,9.997e-05,2]
[348273351,1736430634460,-500.0,9.997e-05,2]
[348273353,1736430634473,-500.0,9.997e-05,2]
[348273355,1736430634484,-500.0,9.997e-05,2]
[348273357,1736430634493,-500.0,9.997e-05,2]
[348273359,1736430634503,-500.0,9.997e-05,2]
[348273361,1736430634513,-500.0,9.997e-05,2]
[348273363,1736430634523,-500.0,9.997e-05,2]
[348273365,1736430634533,-500.0,9.997e-05,2]
[348273367,1736430634542,-500.0,9.997e-05,2]
[348273369,1736430634551,-500.0,9.997e-05,2]
[348273371,1736430634560,-500.0,9.997e-05,2]
[348273373,1736430634569,-500.0,9.997e-05,2]
[348273375,1736430634578,-500.0,9.997e-05,2]
[348273377,1736430634588,-500.0,9.997e-05,2]
[348273379,1736430634597,-500.0,9.997e-05,2]
[348273381,1736430634607,-500.0,9.997e-05,2]
[348273383,1736430634616,-500.0,9.997e-05,2]
[348273385,1736430634625,-500.0,9.997e-05,2]
[348273387,1736430634634,-500.0,9.997e-05,2]
[348273389,1736430634643,-500.0,9.997e-05,2]
[348273391,1736430634652,-500.0,9.997e-05,2]
[348273393,1736430634661,-500.0,9.997e-05,2]
[348273395,1736430634671,-500.0,9.997e-05,2]
[348273397,1736430634680,-500.0,9.997e-05,2]
[348273399,1736430634689,-500.0,9.997e-05,2]
[348273401,1736430634698,-500.0,9.997e-05,2]
[348273403,1736430634708,-500.0,9.997e-05,2]
[348273405,1736430634717,-500.0,9.997e-05,2]
[348273407,1736430634731,-500.0,9.997e-05,2]
[348273408,1736430634740,-500.0,9.997e-05,2]
[348273410,1736430634749,-500.0,9.997e-05,2]
[348273413,1736430634759,-500.0,9.997e-05,2]
[348273414,1736430634768,-500.0,9.997e-05,2]
[348273416,1736430634778,-500.0,9.997e-05,2]
[348273418,1736430634788,-500.0,9.997e-05,2]
[348273420,1736430634798,-500.0,9.997e-05,2]
[348273422,1736430634807,-500.0,9.997e-05,2]
[348273424,1736430634817,-500.0,9.997e-05,2]
[348273426,1736430634826,-500.0,9.997e-05,2]
[348273428,1736430634835,-500.0,9.997e-05,2]
[348273430,1736430634844,-500.0,9.997e-05,2]
[348273432,1736430634854,-500.0,9.997e-05,2]
[348273434,1736430634863,-1224.14,9.997e-05,2]
[348273436,1736430634873,-500.0,9.997e-05,2]
[348273438,1736430634882,-500.0,9.997e-05,2]
[348273440,1736430634891,-500.0,9.997e-05,2]
[348273442,1736430634901,-500.0,9.997e-05,2]
[348273444,1736430634910,-500.0,9.997e-05,2]
[348273446,1736430634919,-500.0,9.997e-05,2]
[348273448,1736430634929,-500.0,9.997e-05,2]
[348273450,1736430634938,-500.0,9.997e-05,2]
[348273452,1736430634947,-500.0,9.997e-05,2]
[348273454,1736430634956,-500.0,9.997e-05,2]
[348273456,1736430634966,-2077.53,9.997e-05,2]
[348273457,1736430634980,-500.0,9.997e-05,2]
[348273459,1736430634989,-500.0,9.997e-05,2]
[348273461,1736430634999,-500.0,9.997e-05,2]
[348273463,1736430635008,-500.0,9.997e-05,2]
[348273465,1736430635019,-500.0,9.997e-05,2]
[348273468,1736430635028,-500.0,9.997e-05,2]
[348273469,1736430635037,-418.24282764,9.997e-05,2]
[348273471,1736430635046,-500.0,9.997e-05,2]
[348273473,1736430635058,-500.0,9.997e-05,2]
[348273475,1736430635067,-1128.22,9.997e-05,2]
[348273477,1736430635077,-500.0,9.997e-05,2]
[348273479,1736430635086,-500.0,9.997e-05,2]
[348273481,1736430635096,-500.0,9.997e-05,2]
[348273483,1736430635106,-500.0,9.997e-05,2]
[348273485,1736430635116,-500.0,9.997e-05,2]
[348273487,1736430635125,-500.0,9.997e-05,2]
[348273490,1736430635138,-500.0,9.997e-05,2]
[348273492,1736430635149,-500.0,9.997e-05,2]
[348273494,1736430635158,-500.0,9.997e-05,2]
[348273496,1736430635168,-369.68676956,9.997e-05,2]
[348273525,1736430635449,-130.31323044,9.997e-05,2]
[348273527,1736430635459,-500.0,9.997e-05,2]
[348273529,1736430635467,-500.0,9.997e-05,2]
[348273531,1736430635479,-500.0,9.997e-05,2]
[348273533,1736430635489,-500.0,9.997e-05,2]
[348273535,1736430635498,-1094.6,9.997e-05,2]
[348273537,1736430635507,-500.0,9.997e-05,2]
[348273539,1736430635516,-500.0,9.997e-05,2]
[348273541,1736430635525,-500.0,9.997e-05,2]
[348273543,1736430635535,-273.43041632,9.997e-05,2]
[348273546,1736430635547,-226.56958368,9.997e-05,2]
[348273547,1736430635557,-500.0,9.997e-05,2]
[348273549,1736430635566,-500.0,9.997e-05,2]
[348273551,1736430635575,-132.91182578,9.997e-05,2]
[348273554,1736430635586,-367.08817422,9.997e-05,2]
[348273555,1736430635595,-500.0,9.997e-05,2]
[348273556,1736430635604,-500.0,9.997e-05,2]
[348273557,1736430635613,-500.0,9.997e-05,2]
[348273558,1736430635623,-500.0,9.997e-05,2]
[348273559,1736430635633,-500.0,9.997e-05,2]
[348273560,1736430635646,-500.0,9.997e-05,2]
[348273561,1736430635655,-500.0,9.997e-05,2]
[348273562,1736430635664,-500.0,9.997e-05,2]
[348273563,1736430635673,-500.0,9.997e-05,2]
[348273565,1736430635683,-500.0,9.997e-05,2]
[348273566,1736430635692,-500.0,9.997e-05,2]
[348273568,1736430635701,-500.0,9.997e-05,2]
[348273570,1736430635710,-500.0,9.997e-05,2]
[348273573,1736430635723,-500.0,9.997e-05,2]
[348273574,1736430635732,-500.0,9.997e-05,2]
[348273576,1736430635741,-500.0,9.997e-05,2]
[348273578,1736430635750,-500.0,9.997e-05,2]
[348273580,1736430635759,-500.0,9.997e-05,2]
[348273582,1736430635768,-500.0,9.997e-05,2]
[348273584,1736430635777,-500.0,9.997e-05,2]
[348273586,1736430635786,-500.0,9.997e-05,2]
[348273588,1736430635795,-748.35,9.997e-05,2]
[348273590,1736430635804,-500.0,9.997e-05,2]
[348273592,1736430635813,-500.0,9.997e-05,2]
[348273594,1736430635822,-500.0,9.997e-05,2]
[348273596,1736430635832,-218.1380867,9.997e-05,2]
[348273598,1736430635841,-500.0,9.997e-05,2]
[348273600,1736430635849,-500.0,9.997e-05,2]
[348273602,1736430635858,-500.0,9.997e-05,2]
[348273604,1736430635868,-500.0,9.997e-05,2]
[348273606,1736430635876,-500.0,9.997e-05,2]
[348273608,1736430635885,-500.0,9.997e-05,2]
[348273610,1736430635894,-500.0,9.997e-05,2]
[348273612,1736430635903,-500.0,9.997e-05,2]
[348273614,1736430635912,-500.0,9.997e-05,2]
[348273616,1736430635921,-500.0,9.997e-05,2]
[348273618,1736430635930,-500.0,9.997e-05,2]
[348273620,1736430635939,-500.0,9.997e-05,2]
[348273622,1736430635948,-500.0,9.997e-05,2]
[348273624,1736430635957,-500.0,9.997e-05,2]
[348273626,1736430635966,-500.0,9.997e-05,2]
[348273628,1736430635978,-500.0,9.998e-05,2]
[348273630,1736430635987,-500.0,9.998e-05,2]
[348273632,1736430635997,-500.0,9.998e-05,2]
[348273634,1736430636006,-503.33462853,9.998e-05,2]
[348273636,1736430636015,-1036.84,9.998e-05,2]
[348273638,1736430636024,-500.0,9.998e-05,2]
[348273640,1736430636034,-503.31007717,9.998e-05,2]
[348273642,1736430636043,-503.69324661,9.998e-05,2]
[348273644,1736430636053,-503.74187783,9.998e-05,2]
[348273646,1736430636067,-500.0,9.998e-05,2]
[348273648,1736430636076,-500.0,9.998e-05,2]
[348273650,1736430636085,-500.32583259,9.998e-05,2]
[348273652,1736430636098,-500.0,9.998e-05,2]
[348273655,1736430636109,-500.0,9.998e-05,2]
[348273656,1736430636118,-500.0,9.998e-05,2]
[348273658,1736430636127,-500.0,9.998e-05,2]
[348273660,1736430636139,-500.0,9.998e-05,2]
[348273663,1736430636149,-500.0,9.998e-05,2]
[348273664,1736430636159,-501.06791574,9.998e-05,2]
[348273666,1736430636168,-500.0,9.998e-05,2]
[348273668,1736430636178,-500.0,9.998e-05,2]
[348273670,1736430636187,-500.0,9.998e-05,2]
[348273672,1736430636196,-500.78213096,9.998e-05,2]
[348273674,1736430636206,-500.5995242,9.998e-05,2]
[348273676,1736430636215,-500.0,9.998e-05,2]
[348273678,1736430636226,-500.0,9.998e-05,2]
[348273680,1736430636236,-500.0,9.998e-05,2]
[348273682,1736430636245,-500.0,9.998e-05,2]
[348273684,1736430636254,-500.0,9.998e-05,2]
[348273686,1736430636263,-500.0,9.998e-05,2]
[348273688,1736430636273,-500.0,9.998e-05,2]
[348273690,1736430636282,-500.0,9.998e-05,2]
[348273692,1736430636292,-500.0,9.998e-05,2]
[348273695,1736430636302,-500.48007366,9.998e-05,2]
[348273697,1736430636311,-500.0,9.998e-05,2]
[348273699,1736430636320,-500.0,9.998e-05,2]
[348273701,1736430636329,-500.0,9.998e-05,2]
[348273703,1736430636338,-500.0,9.998e-05,2]
[348273705,1736430636349,-500.31264481,9.998e-05,2]
[348273707,1736430636358,-500.0,9.998e-05,2]
[348273709,1736430636367,-500.0,9.998e-05,2]
[348273711,1736430636376,-500.0,9.998e-05,2]
[348273713,1736430636385,-500.0,9.998e-05,2]
[348273715,1736430636394,-500.0,9.998e-05,2]
[348273717,1736430636402,-500.0,9.998e-05,2]
[348273719,1736430636411,-501.45989915,9.998e-05,2]
[348273721,1736430636422,-500.66630858,9.998e-05,2]
[348273722,1736430636432,-500.0,9.998e-05,2]
[348273725,1736430636442,-313.4286998,9.998e-05,2]
[348273726,1736430636451,-500.0,9.998e-05,2]
[348273728,1736430636460,-500.0,9.998e-05,2]
[348273731,1736430636472,-500.0,9.998e-05,2]
[348273733,1736430636481,-208.49063092,9.998e-05,2]
[348273735,1736430636494,-291.50936908,9.998e-05,2]
[348273737,1736430636503,-500.0,9.998e-05,2]
[348273739,1736430636512,-208.49063092,9.998e-05,2]
[348273741,1736430636523,-291.50936908,9.998e-05,2]
[348273743,1736430636533,-500.0,9.998e-05,2]
[348273745,1736430636543,-339.99063092,9.998e-05,2]
[348273747,1736430636554,-160.00936908,9.998e-05,2]
[348273749,1736430636563,-500.0,9.998e-05,2]
[348273751,1736430636571,-500.0,9.998e-05,2]
[348273753,1736430636581,-500.0,9.998e-05,2]
[348273755,1736430636590,-191.84063092,9.998e-05,2]
[348273765,1736430636677,-508.67692627,9.997e-05,2]
[348273767,1736430636686,-238.14516759,9.998e-05,2]
[348273769,1736430636697,-70.01420149,9.998e-05,2]
[348273771,1736430636706,-523.16,9.998e-05,2]
[348273773,1736430636715,-500.0,9.998e-05,2]
[348273775,1736430636726,-500.0,9.998e-05,2]
[348273777,1736430636735,-547.71,9.998e-05,2]
[348273779,1736430636744,-500.0,9.998e-05,2]
[348273781,1736430636752,-500.0,9.998e-05,2]
[348273783,1736430636762,-316.98763464,9.998e-05,2]
[348273785,1736430636773,-183.01236536,9.998e-05,2]
[348273787,1736430636783,-193.7229987,9.998e-05,2]
[348273789,1736430636793,-500.0,9.998e-05,2]
[348273791,1736430636802,-500.0,9.998e-05,2]
[348273793,1736430636812,-500.0,9.998e-05,2]
[348273795,1736430636821,-500.0,9.998e-05,2]
[348273797,1736430636830,-500.0,9.998e-05,2]
[348273799,1736430636840,-500.0,9.998e-05,2]
[348273801,1736430636849,-500.0,9.998e-05,2]
[348273803,1736430636859,-489.48497756,9.998e-05,2]
[348273924,1736430638076,-500.0,9.996e-05,2]
[348273926,1736430638086,-500.0,9.996e-05,2]
[348273928,1736430638095,-500.0,9.997e-05,2]
[348273930,1736430638107,-500.0,9.997e-05,2]
[348273932,1736430638116,-500.0,9.997e-05,2]
[348273934,1736430638126,-500.0,9.997e-05,2]
[348273936,1736430638136,-500.0,9.997e-05,2]
[348273938,1736430638146,-500.0,9.997e-05,2]
[348273940,1736430638156,-500.0,9.997e-05,2]
[348273942,1736430638165,-500.0,9.997e-05,2]
[348273944,1736430638174,-16.89916922,9.998e-05,2]
[348273946,1736430638183,-1387.53,9.998e-05,2]
[348273948,1736430638192,-196.06568716,9.998e-05,2]
[348273950,1736430638203,-303.93431284,9.998e-05,2]
[348273952,1736430638212,-500.0,9.998e-05,2]
[348273954,1736430638224,-500.0,9.998e-05,2]
[348273957,1736430638235,-500.0,9.998e-05,2]
[348273959,1736430638244,-500.0,9.998e-05,2]
[348273961,1736430638253,-500.0,9.998e-05,2]
[348273962,1736430638263,-500.0,9.998e-05,2]
[348273965,1736430638272,-63.74067806,9.998e-05,2]
[348273967,1736430638284,-371.938,9.998e-05,2]
[348273969,1736430638295,-64.32132194,9.998e-05,2]
[348273971,1736430638304,-500.0,9.998e-05,2]
[348273973,1736430638313,-500.0,9.998e-05,2]
[348273975,1736430638322,-500.0,9.998e-05,2]
[348273977,1736430638331,-500.0,9.998e-05,2]
[348273979,1736430638340,-537.52,9.998e-05,2]
[348273981,1736430638350,-500.0,9.998e-05,2]
[348273983,1736430638360,-500.0,9.998e-05,2]
[348273985,1736430638369,-500.0,9.998e-05,2]
[348273987,1736430638378,-500.0,9.998e-05,2]
[348273989,1736430638388,-35.65867806,9.998e-05,2]
[348273991,1736430638400,-464.34132194,9.998e-05,2]
[348273993,1736430638409,-500.0,9.998e-05,2]
[348273995,1736430638419,-500.0,9.998e-05,2]
[348273997,1736430638429,-500.0,9.998e-05,2]
[348273999,1736430638438,-500.0,9.998e-05,2]
[348274001,1736430638447,-500.0,9.998e-05,2]
[348274003,1736430638456,-500.0,9.998e-05,2]
[348274005,1736430638465,-500.0,9.998e-05,2]
[348274007,1736430638477,-500.0,9.998e-05,2]
[348274009,1736430638485,-500.0,9.998e-05,2]
[348274011,1736430638495,-500.0,9.998e-05,2]
[348274013,1736430638504,-500.0,9.998e-05,2]
[348274015,1736430638512,-500.0,9.998e-05,2]
[348274017,1736430638521,-3848.442669,9.998e-05,2]
[348274019,1736430638530,-325.44750405,9.998e-05,2]
[348274021,1736430638539,-500.38248434,9.998e-05,2]
[348274022,1736430638548,-500.0,9.998e-05,2]
[348274025,1736430638557,-500.0,9.998e-05,2]
[348274026,1736430638567,-500.0,9.998e-05,2]
[348274028,1736430638576,-500.0,9.998e-05,2]
[348274031,1736430638585,-500.0,9.998e-05,2]
[348274033,1736430638594,-500.0,9.998e-05,2]
[348274034,1736430638604,-500.0,9.998e-05,2]
[348274036,1736430638613,-4736.456601,9.998e-05,2]
[348274038,1736430638623,-500.0,9.998e-05,2]
[348274041,1736430638632,-653.12,9.998e-05,2]
[348274043,1736430638641,-500.0,9.998e-05,2]
[348274045,1736430638650,-500.0,9.998e-05,2]
[348274047,1736430638660,-158.604866,9.998e-05,2]
[348274048,1736430638669,-500.0,9.998e-05,2]
[348274051,1736430638678,-500.0,9.998e-05,2]
[348274052,1736430638687,-166.828221,9.998e-05,2]
[348274055,1736430638696,-500.0,9.998e-05,2]
[348274057,1736430638706,-500.0,9.998e-05,2]
[348274058,1736430638715,-500.0,9.998e-05,2]
[348274060,1736430638727,-500.0,9.998e-05,2]
[348274062,1736430638736,-500.0,9.998e-05,2]
[348274064,1736430638745,-500.0,9.998e-05,2]
[348274066,1736430638755,-500.0,9.998e-05,2]